[Event "*** Titled Tuesday Blitz"]
[Site "Chess.com"]
[Date "2019.11.05"]
[Round "4"]
[White "JustKid"]
[Black "LawrenceTrent"]
[Result "0-1"]
[WhiteElo "2446"]
[BlackElo "2693"]
[TimeControl "180+2"]
[EndTime "13:50:23 PST"]
[Termination "LawrenceTrent won by resignation"]

1. d4 {[%clk 0:03:01.9]} 1... d5 {[%clk 0:02:59.1]} 2. Bf4 {[%clk 0:03:03.5]}
2... c5 {[%clk 0:02:59]} 3. e3 {[%clk 0:03:04.9]} 3... Nc6 {[%clk 0:02:59.8]} 4.
Nf3 {[%clk 0:03:05.7]} 4... Nf6 {[%clk 0:02:57.7]} 5. c3 {[%clk 0:03:04.5]} 5...
e6 {[%clk 0:02:58.7]} 6. Nbd2 {[%clk 0:03:05.4]} 6... cxd4 {[%clk 0:02:59.3]} 7.
exd4 {[%clk 0:03:05.6]} 7... Nh5 {[%clk 0:03:00.4]} 8. Be3 {[%clk 0:03:07.2]}
8... Bd6 {[%clk 0:03:00.5]} 9. Bd3 {[%clk 0:03:08.7]} 9... f5 {[%clk 0:02:59]}
10. Bg5 {[%clk 0:02:23.7]} 10... Nf6 {[%clk 0:02:52.5]} 11. O-O {[%clk
0:02:22.6]} 11... O-O {[%clk 0:02:49.7]} 12. Re1 {[%clk 0:02:21.5]} 12... Qc7
{[%clk 0:02:45.5]} 13. Bxf6 {[%clk 0:02:18.9]} 13... gxf6 {[%clk 0:02:37.8]} 14.
h3 {[%clk 0:02:14]} 14... Kh8 {[%clk 0:02:36.1]} 15. Nh4 {[%clk 0:02:11.4]}
15... Qf7 {[%clk 0:02:30.4]} 16. Kh1 {[%clk 0:02:03.2]} 16... Bd7 {[%clk
0:02:29.8]} 17. Ndf3 {[%clk 0:01:53.9]} 17... Rg8 {[%clk 0:02:27.7]} 18. c4
{[%clk 0:01:54.5]} 18... Nb4 {[%clk 0:02:14.9]} 19. cxd5 {[%clk 0:01:33.8]}
19... Nxd5 {[%clk 0:02:11.9]} 20. Rg1 {[%clk 0:01:29.6]} 20... Nf4 {[%clk
0:02:10.7]} 21. Bf1 {[%clk 0:01:29.9]} 21... Bc6 {[%clk 0:02:00.5]} 22. g3
{[%clk 0:01:17.2]} 22... Qh5 {[%clk 0:01:49.4]} 23. Kh2 {[%clk 0:00:51.9]} 23...
Ng6 {[%clk 0:01:38.5]} 24. Nxg6+ {[%clk 0:00:46.3]} 24... Rxg6 {[%clk 0:01:39]}
25. Bg2 {[%clk 0:00:45.7]} 25... Rag8 {[%clk 0:01:38.9]} 26. Kh1 {[%clk
0:00:43.2]} 26... Rxg3 {[%clk 0:01:30.4]} 27. fxg3 {[%clk 0:00:43.5]} 27... Rxg3
{[%clk 0:01:31]} 28. Nh2 {[%clk 0:00:39.8]} 28... Rxh3 {[%clk 0:01:23.7]} 0-1

[Event "*** Titled Tuesday Blitz"]
[Site "Chess.com"]
[Date "2019.11.05"]
[Round "4"]
[White "olksuna"]
[Black "anon102030"]
[Result "1-0"]
[WhiteElo "2588"]
[BlackElo "2781"]
[TimeControl "180+2"]
[EndTime "13:50:58 PST"]
[Termination "olksuna won by checkmate"]

1. c4 {[%clk 0:03:01.9]} 1... e5 {[%clk 0:03:00.2]} 2. Nc3 {[%clk 0:03:02.6]}
2... Nc6 {[%clk 0:03:01.4]} 3. g3 {[%clk 0:03:01.8]} 3... g6 {[%clk 0:03:02.7]}
4. Bg2 {[%clk 0:03:01.6]} 4... Bg7 {[%clk 0:03:03.9]} 5. d3 {[%clk 0:03:01.9]}
5... d6 {[%clk 0:03:05.1]} 6. Nf3 {[%clk 0:02:58.2]} 6... f5 {[%clk 0:03:04]} 7.
O-O {[%clk 0:02:51.2]} 7... Nf6 {[%clk 0:03:00.6]} 8. Rb1 {[%clk 0:02:52.2]}
8... O-O {[%clk 0:02:53.8]} 9. b4 {[%clk 0:02:52.7]} 9... a6 {[%clk 0:02:54.7]}
10. b5 {[%clk 0:02:51.3]} 10... axb5 {[%clk 0:02:55.3]} 11. cxb5 {[%clk
0:02:52.4]} 11... Na5 {[%clk 0:02:57]} 12. Qc2 {[%clk 0:02:14.8]} 12... h6
{[%clk 0:02:56.7]} 13. Rd1 {[%clk 0:02:07.5]} 13... Be6 {[%clk 0:02:57]} 14. d4
{[%clk 0:01:52.5]} 14... e4 {[%clk 0:02:55.1]} 15. Nh4 {[%clk 0:01:53.3]} 15...
g5 {[%clk 0:02:51.3]} 16. d5 {[%clk 0:01:45.8]} 16... Bd7 {[%clk 0:02:43.9]} 17.
Ng6 {[%clk 0:01:36.4]} 17... Re8 {[%clk 0:02:42.3]} 18. h4 {[%clk 0:01:20.3]}
18... Kh7 {[%clk 0:02:43.3]} 19. hxg5 {[%clk 0:01:20.7]} 19... hxg5 {[%clk
0:02:44.9]} 20. Bxg5 {[%clk 0:01:18.6]} 20... Kxg6 {[%clk 0:02:46.5]} 21. Bf4
{[%clk 0:01:18]} 21... Nh5 {[%clk 0:02:45.7]} 22. Be3 {[%clk 0:01:16]} 22... Nc4
{[%clk 0:02:42.1]} 23. Bd4 {[%clk 0:01:14.4]} 23... Na3 {[%clk 0:02:40.8]} 24.
Qc1 {[%clk 0:01:10.3]} 24... Nxb1 {[%clk 0:02:41.9]} 25. Bxg7 {[%clk 0:01:11.8]}
25... Kxg7 {[%clk 0:02:34.5]} 26. Qxb1 {[%clk 0:01:12.5]} 26... e3 {[%clk
0:02:33.1]} 27. Bf3 {[%clk 0:01:09.4]} 27... exf2+ {[%clk 0:02:32]} 28. Kxf2
{[%clk 0:01:11.3]} 28... Qg5 {[%clk 0:02:31.2]} 29. Rg1 {[%clk 0:01:10.1]} 29...
Qe3+ {[%clk 0:02:30]} 30. Kf1 {[%clk 0:01:10]} 30... Rh8 {[%clk 0:02:22.8]} 31.
Nd1 {[%clk 0:01:09.7]} 31... Qe5 {[%clk 0:02:22.6]} 32. Kf2 {[%clk 0:01:06.8]}
32... Nf6 {[%clk 0:02:21.8]} 33. Qc2 {[%clk 0:01:02.7]} 33... Ra3 {[%clk
0:02:20.9]} 34. Qxc7 {[%clk 0:01:01.7]} 34... Qd4+ {[%clk 0:02:09.9]} 35. Kg2
{[%clk 0:00:59.8]} 35... Qe5 {[%clk 0:01:23.4]} 36. Nf2 {[%clk 0:00:50.5]} 36...
Rxa2 {[%clk 0:01:19.9]} 37. Qxb7 {[%clk 0:00:50.6]} 37... Kg6 {[%clk 0:01:18.6]}
38. Nd3 {[%clk 0:00:48.6]} 38... Rxe2+ {[%clk 0:01:17]} 39. Kf1 {[%clk 0:00:50]}
39... Qa1+ {[%clk 0:01:05.8]} 40. Kxe2 {[%clk 0:00:51.3]} 40... Qxg1 {[%clk
0:01:01.2]} 41. Nf4+ {[%clk 0:00:53.2]} 41... Kg5 {[%clk 0:01:01.6]} 42. Ne6+
{[%clk 0:00:52.7]} 42... Bxe6 {[%clk 0:01:02.6]} 43. Qg7# {[%clk 0:00:53]} 1-0

[Event "*** Titled Tuesday Blitz"]
[Site "Chess.com"]
[Date "2019.11.05"]
[Round "4"]
[White "riconaipe"]
[Black "Eliwood44"]
[Result "1-0"]
[WhiteElo "2616"]
[BlackElo "2354"]
[TimeControl "180+2"]
[EndTime "13:51:00 PST"]
[Termination "riconaipe won by resignation"]

1. d4 {[%clk 0:03:01.4]} 1... Nf6 {[%clk 0:02:58.5]} 2. c4 {[%clk 0:03:00.5]}
2... e6 {[%clk 0:02:59.5]} 3. Nc3 {[%clk 0:03:01.4]} 3... d5 {[%clk 0:03:00.7]}
4. Nf3 {[%clk 0:03:01]} 4... Be7 {[%clk 0:03:00.7]} 5. e3 {[%clk 0:03:00.2]}
5... O-O {[%clk 0:03:00.7]} 6. Bd2 {[%clk 0:02:59.8]} 6... b6 {[%clk 0:03:01.7]}
7. Rc1 {[%clk 0:03:00.8]} 7... Bb7 {[%clk 0:03:02.7]} 8. cxd5 {[%clk 0:02:59.9]}
8... Nxd5 {[%clk 0:03:03]} 9. Bd3 {[%clk 0:03:00.3]} 9... Nd7 {[%clk 0:03:02.6]}
10. O-O {[%clk 0:03:01.1]} 10... N7f6 {[%clk 0:03:03.7]} 11. a3 {[%clk 0:02:58]}
11... c5 {[%clk 0:03:04]} 12. e4 {[%clk 0:02:50.7]} 12... Nxc3 {[%clk 0:03:01]}
13. Bxc3 {[%clk 0:02:43.7]} 13... Nxe4 {[%clk 0:03:00.2]} 14. Bxe4 {[%clk
0:02:29.6]} 14... Bxe4 {[%clk 0:02:59.1]} 15. Ne5 {[%clk 0:02:16.9]} 15... cxd4
{[%clk 0:02:46.1]} 16. Bxd4 {[%clk 0:02:07.1]} 16... Bf6 {[%clk 0:02:44.8]} 17.
Re1 {[%clk 0:02:06.6]} 17... Bb7 {[%clk 0:02:38.8]} 18. Qg4 {[%clk 0:02:05.6]}
18... Rc8 {[%clk 0:02:33.5]} 19. Rcd1 {[%clk 0:02:05.8]} 19... Qe7 {[%clk
0:02:28]} 20. Nd7 {[%clk 0:01:55]} 20... Bxd4 {[%clk 0:02:25.3]} 21. Nxf8 {[%clk
0:01:55.3]} 21... Bxf2+ {[%clk 0:02:00.1]} 22. Kxf2 {[%clk 0:01:54.3]} 22...
Rc2+ {[%clk 0:02:00.2]} 23. Re2 {[%clk 0:01:46.8]} 23... Qc5+ {[%clk 0:01:54.1]}
24. Qd4 {[%clk 0:01:23.4]} 24... Rxe2+ {[%clk 0:01:40]} 25. Kxe2 {[%clk
0:01:25.3]} 25... Qxf8 {[%clk 0:01:38.6]} 26. Qd8 {[%clk 0:01:21]} 26... Bd5
{[%clk 0:01:38.1]} 27. Qxf8+ {[%clk 0:01:20.5]} 27... Kxf8 {[%clk 0:01:40]} 28.
g3 {[%clk 0:01:18]} 28... Ke7 {[%clk 0:01:39.9]} 29. Rc1 {[%clk 0:01:19.3]}
29... Kd7 {[%clk 0:01:40.4]} 30. Ke3 {[%clk 0:01:19.6]} 30... e5 {[%clk
0:01:41.4]} 31. g4 {[%clk 0:01:20.1]} 31... f6 {[%clk 0:01:41.5]} 32. h4 {[%clk
0:01:21.5]} 32... h6 {[%clk 0:01:42.1]} 33. Rd1 {[%clk 0:01:17.1]} 33... Ke6
{[%clk 0:01:41.8]} 34. Rc1 {[%clk 0:01:18.1]} 34... Kd7 {[%clk 0:01:39.9]} 35.
Rg1 {[%clk 0:01:14.2]} 35... Ke6 {[%clk 0:01:36.9]} 36. b4 {[%clk 0:01:15.4]}
36... a5 {[%clk 0:01:36.9]} 37. bxa5 {[%clk 0:01:15.8]} 37... bxa5 {[%clk
0:01:38.8]} 38. Rb1 {[%clk 0:01:14]} 38... h5 {[%clk 0:01:34.8]} 39. Rb6+ {[%clk
0:01:14.6]} 39... Kd7 {[%clk 0:01:34.7]} 40. gxh5 {[%clk 0:01:14.7]} 40... a4
{[%clk 0:01:34]} 41. h6 {[%clk 0:01:14.1]} 41... gxh6 {[%clk 0:01:32.1]} 42.
Rxf6 {[%clk 0:01:15]} 42... h5 {[%clk 0:01:31.6]} 43. Rf5 {[%clk 0:01:16]} 43...
Kc6 {[%clk 0:01:22.8]} 44. Rxh5 {[%clk 0:01:09.7]} 44... Kc5 {[%clk 0:01:19]}
45. Rxe5 {[%clk 0:01:09.5]} 45... Kc4 {[%clk 0:01:20.5]} 46. h5 {[%clk
0:01:03.1]} 46... Bf7 {[%clk 0:01:18.9]} 47. h6 {[%clk 0:01:03.3]} 47... Kb3
{[%clk 0:01:19.1]} 48. h7 {[%clk 0:01:03.8]} 1-0

[Event "*** Titled Tuesday Blitz"]
[Site "Chess.com"]
[Date "2019.11.05"]
[Round "4"]
[White "novocane"]
[Black "1f3_2g41-0"]
[Result "0-1"]
[WhiteElo "2167"]
[BlackElo "2287"]
[TimeControl "180+2"]
[EndTime "13:51:01 PST"]
[Termination "1f3_2g41-0 won by resignation"]

1. d4 {[%clk 0:03:01.7]} 1... Nf6 {[%clk 0:02:59.7]} 2. c4 {[%clk 0:03:02]} 2...
g6 {[%clk 0:03:00.3]} 3. Nc3 {[%clk 0:03:02.5]} 3... d5 {[%clk 0:03:01.4]} 4.
cxd5 {[%clk 0:03:03.2]} 4... Nxd5 {[%clk 0:03:03.3]} 5. e4 {[%clk 0:03:02.9]}
5... Nxc3 {[%clk 0:03:04.5]} 6. bxc3 {[%clk 0:03:04.8]} 6... Bg7 {[%clk
0:03:06.2]} 7. Qa4+ {[%clk 0:03:04.4]} 7... Nd7 {[%clk 0:03:03.8]} 8. Nf3 {[%clk
0:03:04.7]} 8... O-O {[%clk 0:03:04.7]} 9. Be2 {[%clk 0:02:11.2]} 9... c5 {[%clk
0:03:01.1]} 10. O-O {[%clk 0:02:07.6]} 10... cxd4 {[%clk 0:02:43.5]} 11. cxd4
{[%clk 0:02:06]} 11... Nb6 {[%clk 0:02:41.3]} 12. Qa3 {[%clk 0:01:32.7]} 12...
Bg4 {[%clk 0:02:40.1]} 13. Bg5 {[%clk 0:01:11.5]} 13... Bxf3 {[%clk 0:02:31]}
14. Bxe7 {[%clk 0:01:03.1]} 14... Qxd4 {[%clk 0:02:29.4]} 15. Bxf8 {[%clk
0:00:54.8]} 15... Bxe2 {[%clk 0:02:17.6]} 16. Bxg7 {[%clk 0:00:51.2]} 16... Kxg7
{[%clk 0:02:18.3]} 17. Rfe1 {[%clk 0:00:48.2]} 17... Rd8 {[%clk 0:02:17.2]} 18.
Qg3 {[%clk 0:00:33.4]} 18... Nc4 {[%clk 0:02:03.5]} 19. h4 {[%clk 0:00:32.8]}
19... Nd2 {[%clk 0:01:59]} 20. Rac1 {[%clk 0:00:12.9]} 20... Nxe4 {[%clk
0:01:58.2]} 21. Qf4 {[%clk 0:00:11.8]} 21... Bd3 {[%clk 0:01:54.5]} 22. Rcd1
{[%clk 0:00:12.7]} 22... f5 {[%clk 0:01:29.4]} 23. h5 {[%clk 0:00:13.8]} 23...
Rd7 {[%clk 0:01:25.7]} 24. h6+ {[%clk 0:00:13.5]} 24... Kf7 {[%clk 0:01:27]} 25.
Rxe4 {[%clk 0:00:05.6]} 25... Qxe4 {[%clk 0:01:26.2]} 26. Qb8 {[%clk 0:00:06.5]}
26... Qd4 {[%clk 0:01:08.8]} 27. Rxd3 {[%clk 0:00:03.5]} 27... Qxd3 {[%clk
0:01:09.2]} 28. Qh8 {[%clk 0:00:05.4]} 28... Qd1+ {[%clk 0:01:10.4]} 29. Kh2
{[%clk 0:00:07]} 29... Qh5+ {[%clk 0:01:12]} 30. Kg3 {[%clk 0:00:08]} 30... Qg4+
{[%clk 0:01:12.4]} 31. Kh2 {[%clk 0:00:08.5]} 31... Qh4+ {[%clk 0:01:14.3]} 0-1

[Event "*** Titled Tuesday Blitz"]
[Site "Chess.com"]
[Date "2019.11.05"]
[Round "4"]
[White "ural58"]
[Black "albi1999"]
[Result "1-0"]
[WhiteElo "2449"]
[BlackElo "2579"]
[TimeControl "180+2"]
[EndTime "13:51:04 PST"]
[Termination "ural58 won by resignation"]

1. Nc3 {[%clk 0:03:01.7]} 1... e5 {[%clk 0:02:57.9]} 2. d4 {[%clk 0:03:01.7]}
2... exd4 {[%clk 0:02:57.4]} 3. Qxd4 {[%clk 0:03:03.3]} 3... Nc6 {[%clk
0:02:58.9]} 4. Qd3 {[%clk 0:03:02.5]} 4... Nf6 {[%clk 0:02:58.9]} 5. Bg5 {[%clk
0:03:03.1]} 5... h6 {[%clk 0:02:59.5]} 6. Qe3+ {[%clk 0:02:55.7]} 6... Qe7
{[%clk 0:02:58.3]} 7. Bxf6 {[%clk 0:02:54]} 7... Qxe3 {[%clk 0:02:57.9]} 8. fxe3
{[%clk 0:02:52.9]} 8... gxf6 {[%clk 0:02:58.8]} 9. Nd5 {[%clk 0:02:53.9]} 9...
Kd8 {[%clk 0:02:57.3]} 10. O-O-O {[%clk 0:02:41.6]} 10... f5 {[%clk 0:02:58]}
11. Nf3 {[%clk 0:02:30.1]} 11... d6 {[%clk 0:02:59.1]} 12. g3 {[%clk 0:02:30.4]}
12... Bg7 {[%clk 0:02:59.4]} 13. Bh3 {[%clk 0:02:30.8]} 13... Re8 {[%clk
0:02:59.4]} 14. Nh4 {[%clk 0:02:27.2]} 14... Ne7 {[%clk 0:02:44.8]} 15. Nxe7
{[%clk 0:02:27.6]} 15... Rxe7 {[%clk 0:02:46.7]} 16. Bxf5 {[%clk 0:02:27.7]}
16... Bf6 {[%clk 0:02:14.1]} 17. Bxc8 {[%clk 0:02:26.4]} 17... Rxc8 {[%clk
0:02:14.9]} 18. Nf5 {[%clk 0:02:24.4]} 18... Re6 {[%clk 0:02:16.1]} 19. Rhf1
{[%clk 0:02:21.6]} 19... h5 {[%clk 0:02:16]} 20. Rd3 {[%clk 0:02:21.3]} 20...
Kd7 {[%clk 0:02:14.8]} 21. c3 {[%clk 0:02:19.3]} 21... Rce8 {[%clk 0:02:13.7]}
22. Kd2 {[%clk 0:02:20.2]} 22... Be5 {[%clk 0:02:12.2]} 23. Nd4 {[%clk
0:02:12.8]} 23... Rf6 {[%clk 0:02:11.5]} 24. Nf3 {[%clk 0:02:08.2]} 24... Rf5
{[%clk 0:02:07.9]} 25. Nxe5+ {[%clk 0:02:05]} 25... Rexe5 {[%clk 0:02:09.8]} 26.
Rf4 {[%clk 0:02:02.9]} 26... Ke6 {[%clk 0:02:08.3]} 27. Rdd4 {[%clk 0:01:59.9]}
27... d5 {[%clk 0:02:07.8]} 28. Rxf5 {[%clk 0:01:54.4]} 28... Kxf5 {[%clk
0:02:06]} 29. Rf4+ {[%clk 0:01:50.7]} 29... Kg6 {[%clk 0:02:05]} 30. Kd3 {[%clk
0:01:51.2]} 30... f5 {[%clk 0:01:59.9]} 31. c4 {[%clk 0:01:48]} 31... dxc4+
{[%clk 0:02:00.5]} 32. Rxc4 {[%clk 0:01:47.8]} 32... c6 {[%clk 0:02:01.7]} 33.
e4 {[%clk 0:01:47.9]} 33... Rb5 {[%clk 0:01:59.8]} 34. b3 {[%clk 0:01:45.8]}
34... Ra5 {[%clk 0:01:57.8]} 35. a4 {[%clk 0:01:45.6]} 35... fxe4+ {[%clk
0:01:53.7]} 36. Rxe4 {[%clk 0:01:38.9]} 36... Rd5+ {[%clk 0:01:54.8]} 37. Rd4
{[%clk 0:01:38.2]} 37... Rf5 {[%clk 0:01:55.8]} 38. Rd7 {[%clk 0:01:34.1]} 38...
Rf2 {[%clk 0:01:54.4]} 39. Rxb7 {[%clk 0:01:30.4]} 39... Rxh2 {[%clk 0:01:48.6]}
40. Rxa7 {[%clk 0:01:23.7]} 40... Rg2 {[%clk 0:01:49.3]} 41. Ra6 {[%clk
0:01:19.6]} 41... Rxg3+ {[%clk 0:01:50.3]} 42. e3 {[%clk 0:01:21.1]} 42... h4
{[%clk 0:01:50.7]} 43. Rxc6+ {[%clk 0:01:22.7]} 43... Kg5 {[%clk 0:01:52]} 44.
Rc8 {[%clk 0:01:18.1]} 44... h3 {[%clk 0:01:52.9]} 45. Rh8 {[%clk 0:01:18.5]}
45... Kg4 {[%clk 0:01:54.3]} 46. a5 {[%clk 0:01:18.7]} 46... Kf3 {[%clk
0:01:54.6]} 47. a6 {[%clk 0:01:13.6]} 47... Kg2 {[%clk 0:01:50.8]} 48. a7 {[%clk
0:01:11.6]} 1-0

[Event "*** Titled Tuesday Blitz"]
[Site "Chess.com"]
[Date "2019.11.05"]
[Round "4"]
[White "cherryandmint"]
[Black "Slovak_fighter2000"]
[Result "1/2-1/2"]
[WhiteElo "2815"]
[BlackElo "2403"]
[TimeControl "180+2"]
[EndTime "13:51:06 PST"]
[Termination "Game drawn by repetition"]

1. e4 {[%clk 0:03:01.9]} 1... e6 {[%clk 0:03:00.2]} 2. d4 {[%clk 0:03:02.5]}
2... d5 {[%clk 0:03:01.5]} 3. e5 {[%clk 0:03:04.4]} 3... c5 {[%clk 0:03:01.9]}
4. c3 {[%clk 0:03:06.3]} 4... Nc6 {[%clk 0:03:03.1]} 5. Nf3 {[%clk 0:03:07.8]}
5... Qb6 {[%clk 0:03:04.4]} 6. a3 {[%clk 0:03:09]} 6... c4 {[%clk 0:03:04.5]} 7.
Nbd2 {[%clk 0:03:09.3]} 7... f6 {[%clk 0:03:05.9]} 8. Be2 {[%clk 0:03:01.9]}
8... fxe5 {[%clk 0:03:06.4]} 9. Nxe5 {[%clk 0:03:02.1]} 9... Nxe5 {[%clk
0:03:07.5]} 10. dxe5 {[%clk 0:03:04]} 10... Bc5 {[%clk 0:03:08.8]} 11. O-O
{[%clk 0:03:04.7]} 11... Ne7 {[%clk 0:03:10.5]} 12. b4 {[%clk 0:03:06]} 12...
cxb3 {[%clk 0:03:12.4]} 13. Nxb3 {[%clk 0:03:06.4]} 13... O-O {[%clk 0:03:13.5]}
14. Nxc5 {[%clk 0:03:07]} 14... Qxc5 {[%clk 0:03:15.4]} 15. a4 {[%clk
0:03:08.6]} 15... Qc7 {[%clk 0:03:16.4]} 16. Ba3 {[%clk 0:03:08.4]} 16... Rf7
{[%clk 0:02:57]} 17. c4 {[%clk 0:02:59.9]} 17... dxc4 {[%clk 0:02:52.2]} 18. Bd6
{[%clk 0:02:58.1]} 18... Qc6 {[%clk 0:02:47]} 19. Rc1 {[%clk 0:02:58.3]} 19...
c3 {[%clk 0:02:38.5]} 20. Bb5 {[%clk 0:02:58.4]} 20... Qd5 {[%clk 0:02:31.6]}
21. Be8 {[%clk 0:02:51.3]} 21... Qxd1 {[%clk 0:02:27.7]} 22. Rfxd1 {[%clk
0:02:30.1]} 22... Nd5 {[%clk 0:02:26.4]} 23. Bxf7+ {[%clk 0:01:35.2]} 23... Kxf7
{[%clk 0:02:28.3]} 24. Rxd5 {[%clk 0:01:30.3]} 24... exd5 {[%clk 0:02:26.9]} 25.
Rxc3 {[%clk 0:01:32.2]} 25... d4 {[%clk 0:02:15.3]} 26. Rc7+ {[%clk 0:01:29.5]}
26... Kg6 {[%clk 0:02:13.4]} 27. f4 {[%clk 0:01:26]} 27... Kf5 {[%clk
0:02:01.9]} 28. g3 {[%clk 0:00:49.8]} 28... Ke4 {[%clk 0:01:54.7]} 29. Kf2
{[%clk 0:00:50.9]} 29... Bf5 {[%clk 0:01:42.8]} 30. Rxb7 {[%clk 0:00:36.7]}
30... Rc8 {[%clk 0:01:41]} 31. Rc7 {[%clk 0:00:29.7]} 31... Rxc7 {[%clk
0:01:39.5]} 32. Bxc7 {[%clk 0:00:31.6]} 32... Bd7 {[%clk 0:01:38.2]} 33. a5
{[%clk 0:00:32.3]} 33... a6 {[%clk 0:01:38.8]} 34. Bb6 {[%clk 0:00:29.8]} 34...
h5 {[%clk 0:01:39.2]} 35. Ke1 {[%clk 0:00:29.2]} 35... Be6 {[%clk 0:01:37.8]}
36. Kd2 {[%clk 0:00:29.5]} 36... g6 {[%clk 0:01:39]} 37. Bd8 {[%clk 0:00:29.8]}
37... Bd7 {[%clk 0:01:39]} 38. Be7 {[%clk 0:00:31]} 38... Be6 {[%clk 0:01:40]}
39. Bb4 {[%clk 0:00:32.1]} 39... Bh3 {[%clk 0:01:41]} 40. Ba3 {[%clk 0:00:33.2]}
40... Be6 {[%clk 0:01:41.5]} 41. Bb2 {[%clk 0:00:34.5]} 41... Bd7 {[%clk
0:01:39]} 42. Kc2 {[%clk 0:00:35.8]} 42... Ba4+ {[%clk 0:01:37.3]} 43. Kd2
{[%clk 0:00:36.9]} 43... Bd7 {[%clk 0:01:39.2]} 44. Ba3 {[%clk 0:00:38.3]} 44...
Be6 {[%clk 0:01:39.9]} 45. Bc5 {[%clk 0:00:39.2]} 45... Bd7 {[%clk 0:01:38.1]}
46. Ba3 {[%clk 0:00:40.4]} 46... Be6 {[%clk 0:01:38.9]} 1/2-1/2

[Event "*** Titled Tuesday Blitz"]
[Site "Chess.com"]
[Date "2019.11.05"]
[Round "4"]
[White "Bathory44"]
[Black "Saitama_Hero"]
[Result "1-0"]
[WhiteElo "2604"]
[BlackElo "2352"]
[TimeControl "180+2"]
[EndTime "13:51:10 PST"]
[Termination "Bathory44 won by checkmate"]

1. e4 {[%clk 0:03:01.9]} 1... e6 {[%clk 0:03:00.4]} 2. d4 {[%clk 0:03:02.3]}
2... d5 {[%clk 0:02:59]} 3. Nd2 {[%clk 0:03:03.7]} 3... Nf6 {[%clk 0:02:59.1]}
4. e5 {[%clk 0:03:04.4]} 4... Nfd7 {[%clk 0:03:00.6]} 5. Bd3 {[%clk 0:03:05.5]}
5... c5 {[%clk 0:03:02]} 6. c3 {[%clk 0:03:07]} 6... Nc6 {[%clk 0:03:03]} 7.
Ngf3 {[%clk 0:03:07.3]} 7... Qb6 {[%clk 0:03:01.5]} 8. O-O {[%clk 0:03:07.7]}
8... cxd4 {[%clk 0:03:02.7]} 9. cxd4 {[%clk 0:03:09]} 9... Nxd4 {[%clk
0:03:04.5]} 10. Nxd4 {[%clk 0:03:10.3]} 10... Qxd4 {[%clk 0:03:05.5]} 11. Nf3
{[%clk 0:03:11.8]} 11... Qg4 {[%clk 0:03:07]} 12. h3 {[%clk 0:03:07.1]} 12...
Qh5 {[%clk 0:03:08.2]} 13. Re1 {[%clk 0:03:06.2]} 13... Be7 {[%clk 0:03:07.8]}
14. Kh2 {[%clk 0:03:01.5]} 14... g5 {[%clk 0:02:41.2]} 15. g4 {[%clk 0:02:55.5]}
15... Qh6 {[%clk 0:02:40.8]} 16. Bd2 {[%clk 0:02:35.6]} 16... Nc5 {[%clk
0:02:38.3]} 17. Bb5+ {[%clk 0:02:26.6]} 17... Kf8 {[%clk 0:02:17.9]} 18. Rc1
{[%clk 0:02:22.1]} 18... Ne4 {[%clk 0:02:10.2]} 19. Kg2 {[%clk 0:02:14]} 19...
f5 {[%clk 0:01:58.2]} 20. exf6 {[%clk 0:02:09.2]} 20... Bxf6 {[%clk 0:01:58.2]}
21. Bb4+ {[%clk 0:02:07.4]} 21... Kg8 {[%clk 0:01:48.4]} 22. Rc7 {[%clk
0:01:49.1]} 22... Bd8 {[%clk 0:01:31.5]} 23. Qc2 {[%clk 0:01:46.2]} 23... Bxc7
{[%clk 0:01:27.1]} 24. Qxc7 {[%clk 0:01:47]} 24... Qf6 {[%clk 0:01:20.9]} 25.
Rxe4 {[%clk 0:01:41.2]} 25... dxe4 {[%clk 0:01:20.4]} 26. Ne5 {[%clk 0:01:42.2]}
26... h5 {[%clk 0:00:49.7]} 27. Be7 {[%clk 0:01:32.1]} 27... Qf4 {[%clk
0:00:40.1]} 28. Bxg5 {[%clk 0:01:32.5]} 28... Qf8 {[%clk 0:00:31.3]} 29. Ng6
{[%clk 0:01:13.5]} 29... Qf3+ {[%clk 0:00:30.2]} 30. Kg1 {[%clk 0:01:10.6]}
30... Qd1+ {[%clk 0:00:26]} 31. Kh2 {[%clk 0:01:09.1]} 31... Rh7 {[%clk
0:00:25]} 32. Ne7+ {[%clk 0:00:57.8]} 32... Kg7 {[%clk 0:00:16.2]} 33. Qe5+
{[%clk 0:00:53.4]} 33... Kf7 {[%clk 0:00:15.2]} 34. Qf6# {[%clk 0:00:54.4]} 1-0

[Event "*** Titled Tuesday Blitz"]
[Site "Chess.com"]
[Date "2019.11.05"]
[Round "4"]
[White "eldur16"]
[Black "Galileo22"]
[Result "1/2-1/2"]
[WhiteElo "2587"]
[BlackElo "2426"]
[TimeControl "180+2"]
[EndTime "13:51:13 PST"]
[Termination "Game drawn by agreement"]

1. d4 {[%clk 0:03:01.9]} 1... f5 {[%clk 0:03:00]} 2. Nf3 {[%clk 0:03:01.6]} 2...
e6 {[%clk 0:02:50.2]} 3. g3 {[%clk 0:03:01.6]} 3... Nf6 {[%clk 0:02:47.8]} 4.
Bg2 {[%clk 0:03:02.4]} 4... g6 {[%clk 0:02:46.6]} 5. O-O {[%clk 0:03:02.3]} 5...
Bg7 {[%clk 0:02:48.2]} 6. c4 {[%clk 0:03:02.4]} 6... O-O {[%clk 0:02:49.4]} 7.
Nc3 {[%clk 0:03:01.5]} 7... d6 {[%clk 0:02:50.9]} 8. Qc2 {[%clk 0:02:59.4]} 8...
Nc6 {[%clk 0:02:11.5]} 9. b3 {[%clk 0:02:50.5]} 9... Bd7 {[%clk 0:01:28.5]} 10.
Bb2 {[%clk 0:02:43.1]} 10... e5 {[%clk 0:00:59.1]} 11. dxe5 {[%clk 0:02:41.7]}
11... dxe5 {[%clk 0:00:57.7]} 12. e4 {[%clk 0:02:37]} 12... fxe4 {[%clk
0:00:42.4]} 13. Nxe4 {[%clk 0:02:37.1]} 13... Nxe4 {[%clk 0:00:41.1]} 14. Qxe4
{[%clk 0:02:37.2]} 14... Bf5 {[%clk 0:00:39.3]} 15. Qd5+ {[%clk 0:01:54.3]}
15... Kh8 {[%clk 0:00:19.5]} 16. Rad1 {[%clk 0:01:42.6]} 16... Qe7 {[%clk
0:00:18.1]} 17. Rfe1 {[%clk 0:01:35.4]} 17... Rad8 {[%clk 0:00:17.2]} 18. Qb5
{[%clk 0:01:31.8]} 18... Rxd1 {[%clk 0:00:17.9]} 19. Rxd1 {[%clk 0:01:31.9]}
19... Bc8 {[%clk 0:00:19.5]} 20. Re1 {[%clk 0:01:28.2]} 20... Qd6 {[%clk
0:00:17.2]} 21. Nxe5 {[%clk 0:01:17.8]} 21... Qd2 {[%clk 0:00:11.1]} 22. Nf7+
{[%clk 0:00:50.1]} 22... Kg8 {[%clk 0:00:08.6]} 23. Nh6+ {[%clk 0:00:42]} 23...
Kh8 {[%clk 0:00:09]} 24. Nf7+ {[%clk 0:00:34]} 24... Kg8 {[%clk 0:00:10]} 25.
Nh6+ {[%clk 0:00:34.9]} 25... Kh8 {[%clk 0:00:11.2]} 1/2-1/2